bitfinex/quotes_SOLUSD_20240712
["timestamp","ask_amount","ask_price","bid_price","bid_amount"]
[1720814908270,15.71,138.55,138.5,15.71]
[1720814911298,35.71,138.56,138.5,15.71]
[1720814911591,42.927,138.56,138.5,15.71]
[1720814912179,6.6042,138.58,138.46,45.0]
[1720814912180,15.71,138.58,138.51,16.1489]
[1720814912384,15.71,138.58,138.53,15.71]
[1720814914381,15.71,138.58,138.52,15.71]
[1720814915893,7.2156,138.59,138.52,15.71]
[1720814916084,15.71,138.57,138.52,15.71]
[1720814916683,15.71,138.58,138.53,15.71]
[1720814917889,6.011,138.61,138.51,16.1489]
[1720814918089,15.71,138.6,138.54,15.71]
[1720814918487,21.721,138.61,138.55,15.71]
[1720814918691,21.721,138.61,138.56,15.71]
[1720814919396,28.9354,138.61,138.56,15.71]
[1720814919697,15.71,138.6,138.55,15.71]
[1720814920004,6.011,138.61,138.55,15.71]
[1720814920781,21.721,138.61,138.56,15.71]
[1720814921196,15.71,138.6,138.55,15.71]
[1720814921712,6.011,138.61,138.51,16.1489]
[1720814921891,15.71,138.53,138.48,15.71]
[1720814922074,15.71,138.54,138.47,15.9684]
[1720814922279,15.71,138.55,138.49,15.71]
[1720814922784,15.71,138.54,138.47,15.9684]
[1720814923100,15.71,138.51,138.46,15.71]
[1720814923593,15.71,138.53,138.48,15.71]
[1720814925711,15.4429,138.57,138.52,15.71]
[1720814925712,31.1529,138.57,138.52,15.71]
[1720814925915,15.71,138.56,138.51,15.71]
[1720814926203,15.71,138.55,138.5,15.71]
[1720814926386,15.71,138.54,138.49,76.6784]
[1720814927117,15.4429,138.57,138.5,15.71]
[1720814927279,15.71,138.55,138.5,15.71]
[1720814928497,15.71,138.55,138.49,60.9684]
[1720814928703,15.71,138.54,138.49,76.6784]
[1720814930107,15.71,138.54,138.43,6.3122]
[1720814930293,15.71,138.54,138.49,15.71]
[1720814930494,15.71,138.53,138.48,15.71]
[1720814932111,15.71,138.55,138.5,15.71]
[1720814932286,15.71,138.56,138.51,15.71]
[1720814932916,15.4429,138.57,138.49,45.0]
[1720814933210,15.71,138.53,138.45,15.0064]
[1720814933427,15.71,138.53,138.48,15.71]
[1720814934197,15.71,138.54,138.49,15.71]
[1720814939032,15.71,138.55,138.5,15.71]
[1720814939615,15.71,138.56,138.5,15.71]
[1720814940018,22.6598,138.57,138.46,65.0]
[1720814940207,15.71,138.54,138.49,15.71]
[1720814940406,15.4429,138.57,138.49,15.71]
[1720814940731,15.4429,138.57,138.46,65.0]
[1720814940732,15.71,138.55,138.5,15.71]
[1720814940905,15.71,138.54,138.49,15.71]
[1720814941107,15.71,138.54,138.46,65.0]
[1720814941407,15.71,138.54,138.49,15.71]
[1720814942008,15.71,138.54,138.48,15.71]
[1720814943125,15.71,138.54,138.49,15.71]
[1720814944519,15.4429,138.57,138.49,15.71]
[1720814944717,15.71,138.54,138.49,15.71]
[1720814945127,15.71,138.54,138.48,15.71]
[1720814945623,15.71,138.53,138.48,15.71]
[1720814946043,15.71,138.52,138.45,15.0064]
[1720814946420,15.71,138.52,138.47,15.71]
[1720814946609,15.71,138.52,138.45,15.0064]
[1720814946610,15.71,138.53,138.48,15.71]
[1720814947142,15.71,138.53,138.45,15.0064]
[1720814947329,15.71,138.53,138.47,15.71]
[1720814947509,15.71,138.52,138.47,15.71]
[1720814947710,15.71,138.53,138.47,15.71]
[1720814947914,15.71,138.53,138.48,15.71]
[1720814948226,15.71,138.53,138.47,15.71]
[1720814948416,15.71,138.53,138.48,15.71]
[1720814951033,15.71,138.53,138.47,15.71]
[1720814952540,15.71,138.53,138.46,45.0]
[1720814952742,15.71,138.52,138.47,15.71]
[1720814953149,6.5328,138.54,138.46,45.0]
[1720814953449,15.71,138.52,138.47,15.71]
[1720814953647,15.71,138.51,138.46,15.71]
[1720814954444,15.71,138.52,138.47,15.71]
[1720814955751,15.71,138.51,138.46,15.71]
[1720814956627,15.71,138.51,138.41,275.44858948]
[1720814956830,15.71,138.51,138.42,65.0]
[1720814957048,15.71,138.51,138.46,15.71]
[1720814960023,6.5328,138.54,138.47,45.0]
[1720814960331,15.71,138.53,138.47,15.71]
[1720814960951,15.71,138.52,138.47,15.71]
[1720814961332,15.71,138.53,138.47,15.71]
[1720814961732,15.71,138.52,138.47,15.71]
[1720814963762,6.5328,138.54,138.47,15.71]
[1720814964063,15.71,138.53,138.47,15.71]
[1720814967035,15.71,138.51,138.46,15.71]
[1720814967943,15.71,138.51,138.48,7.2209]
[1720814968774,15.71,138.51,138.46,15.71]
[1720814968967,13.7511,138.54,138.46,15.71]
[1720814969159,15.71,138.52,138.46,15.71]
[1720814969673,15.71,138.52,138.47,15.71]
[1720814971176,15.71,138.51,138.46,15.71]
[1720814971475,15.71,138.51,138.47,45.0]
[1720814971673,6.5328,138.54,138.47,60.71]
[1720814971861,15.71,138.53,138.48,15.71]
[1720814972186,15.71,138.52,138.47,60.71]
[1720814973567,13.7514,138.54,138.42,20.0]
[1720814973773,15.71,138.51,138.46,15.71]
[1720814974161,15.71,138.52,138.47,15.71]
[1720814977162,15.71,138.52,138.42,20.0]
[1720814977483,15.71,138.51,138.45,15.71]
[1720814978157,15.71,138.51,138.46,15.71]
[1720814981774,6.5328,138.54,138.46,15.71]
[1720814981968,6.5328,138.54,138.43,45.0]
[1720814982178,15.71,138.5,138.44,20.0]
[1720814982361,15.71,138.5,138.45,60.71]
[1720814983881,15.71,138.51,138.46,15.71]
[1720814984084,15.71,138.51,138.45,45.0]
[1720814984383,15.71,138.51,138.46,15.71]
[1720814984683,15.71,138.51,138.45,45.0]
[1720814984881,15.71,138.5,138.45,60.71]
[1720814985679,15.71,138.51,138.45,60.71]
[1720814985874,16.3557,138.52,138.45,60.71]
[1720814986069,15.71,138.51,138.45,60.71]
[1720814986674,15.71,138.51,138.46,15.71]
[1720814991077,15.71,138.51,138.45,60.71]
[1720814992091,15.71,138.51,138.46,15.71]
[1720814992394,15.71,138.51,138.45,45.0]
[1720814992395,15.71,138.51,138.45,60.71]
[1720814993078,6.3174,138.5,138.4,6.48546913]
[1720814993285,6.3174,138.5,138.43,15.71]
[1720814993286,15.71,138.49,138.43,15.71]
[1720814993593,15.71,138.48,138.43,15.71]
[1720814994166,15.71,138.48,138.47,7.2214]
[1720814994663,15.71,138.49,138.48,7.2212]
[1720814995374,6.3174,138.5,138.48,7.2212]
[1720814995575,15.71,138.49,138.48,7.2212]
[1720814996081,22.0274,138.5,138.48,7.2212]
[1720814998474,15.71,138.49,138.46,7.222]
[1720814999279,15.71,138.48,138.46,7.222]
[1720815000403,15.71,138.48,138.44,7.2231]
[1720815000575,15.71,138.46,138.44,7.2231]
[1720815000779,15.71,138.46,138.44,7.223]
[1720815003687,15.71,138.47,138.44,7.223]
[1720815004308,15.71,138.47,138.45,7.2227]
[1720815005486,15.71,138.47,138.44,7.2231]
[1720815005905,15.71,138.47,138.45,7.2228]
[1720815006200,15.71,138.47,138.42,15.71]
[1720815006410,15.71,138.47,138.44,7.2232]
[1720815006583,15.71,138.47,138.45,7.2227]
[1720815007788,15.71,138.47,138.44,7.2231]
[1720815008000,15.71,138.46,138.44,7.2231]
[1720815008309,15.71,138.47,138.44,7.2231]
[1720815009298,15.71,138.47,138.43,7.2236]
[1720815009722,15.71,138.46,138.43,7.2236]
[1720815010009,15.71,138.47,138.43,7.2236]
[1720815010695,15.71,138.47,138.44,7.2232]
[1720815012502,6.3174,138.5,138.46,7.2218]
[1720815012708,15.71,138.49,138.46,7.2218]
[1720815013110,6.3174,138.5,138.46,7.2218]
[1720815013314,15.71,138.49,138.46,7.2218]
[1720815014291,15.71,138.48,138.45,7.2226]
[1720815014805,15.71,138.48,138.46,7.2223]
[1720815015004,15.71,138.49,138.46,7.2223]
[1720815015308,15.71,138.49,138.47,7.2217]
[1720815015818,15.71,138.49,138.46,7.2221]
[1720815016119,15.71,138.49,138.41,1.44443159]
[1720815016318,15.71,138.48,138.43,15.71]
[1720815016521,15.71,138.48,138.45,7.2227]
[1720815016899,15.71,138.46,138.39,0.8684143]
[1720815017106,15.71,138.46,138.44,7.2231]
[1720815019621,15.71,138.46,138.45,7.2228]
[1720815020134,15.71,138.47,138.45,7.2228]
[1720815020697,6.3174,138.5,138.43,15.71]
[1720815020922,6.3174,138.5,138.47,7.2216]
[1720815021104,15.71,138.49,138.46,7.2221]
[1720815021505,6.3174,138.5,138.46,7.2221]
[1720815021819,15.71,138.49,138.46,7.2221]
[1720815021999,15.71,138.48,138.45,7.2227]
[1720815022512,15.71,138.47,138.42,15.71]
[1720815022693,15.71,138.47,138.44,7.2229]
[1720815024913,15.71,138.49,138.47,7.2217]
[1720815025219,15.71,138.49,138.46,7.222]
[1720815025615,6.3174,138.5,138.43,15.71]
[1720815025911,15.71,138.48,138.43,15.71]
[1720815026510,15.71,138.48,138.46,7.2222]
[1720815027420,22.0274,138.5,138.47,7.2217]
[1720815027905,15.71,138.49,138.47,7.2217]
[1720815028528,15.71,138.49,138.46,7.222]
[1720815030441,7.2188,138.53,138.44,15.71]
[1720815030632,20.0,138.52,138.46,15.71]
[1720815030832,15.71,138.52,138.48,7.2212]
[1720815031033,15.71,138.53,138.5,7.2201]
[1720815032815,15.71,138.54,138.49,15.71]
[1720815034622,15.5185,138.55,138.49,15.71]
[1720815035135,15.71,138.54,138.49,15.71]
[1720815036017,12.60825195,138.57,138.5,15.71]
[1720815036228,15.71,138.55,138.5,15.71]
[1720815037222,7.2166,138.57,138.5,15.71]
[1720815037422,15.71,138.55,138.51,1.44372398]
[1720815037650,15.71,138.56,138.51,17.15372398]
[1720815037825,15.71,138.56,138.51,15.71]
[1720815041050,19.05960161,138.58,138.51,15.71]
[1720815041253,7.5555632,138.61,138.54,15.71]
[1720815041427,15.71,138.59,138.54,15.71]
[1720815041747,7.2148,138.61,138.55,15.71]
[1720815041748,15.71,138.6,138.55,15.71]
[1720815042042,15.71,138.63,138.58,15.71]
[1720815042254,15.71,138.64,138.59,15.71]
[1720815042462,6.3076,138.66,138.59,15.71]
[1720815042757,15.71,138.65,138.6,15.71]
[1720815042931,15.71,138.66,138.61,15.71]
[1720815043451,13.5742,138.69,138.61,15.71]
[1720815043674,15.71,138.67,138.62,15.71]
[1720815044049,15.71,138.66,138.61,15.71]
[1720815046148,13.5742,138.69,138.62,1.44267718]
[1720815046342,15.71,138.67,138.62,17.15267718]
[1720815046548,15.71,138.67,138.62,15.71]
[1720815047463,13.5742,138.69,138.62,15.71]
[1720815047650,15.71,138.67,138.62,15.71]
[1720815048467,6.3638,138.69,138.63,15.71]
[1720815048657,15.71,138.68,138.63,15.71]
[1720815048854,15.71,138.69,138.64,15.71]
[1720815049646,23.1353,138.76,138.65,16.3457]
[1720815049960,23.1353,138.76,138.68,15.71]
[1720815049961,15.71,138.73,138.68,15.71]
[1720815050166,15.71,138.72,138.66,65.0]
[1720815050378,15.71,138.72,138.66,80.71]
[1720815051573,15.71,138.72,138.66,35.71]
[1720815051876,15.71,138.7,138.66,20.0]
[1720815053143,15.71,138.7,138.66,35.71]
[1720815053348,15.71,138.71,138.66,35.71]
[1720815054170,15.71,138.72,138.66,35.71]
[1720815054672,15.71,138.72,138.67,15.71]
[1720815057253,15.71,138.69,138.65,16.3457]
[1720815058653,15.71,138.69,138.6,13.6566]
[1720815058654,15.71,138.69,138.64,15.71]
[1720815060549,15.71,138.7,138.65,15.71]
[1720815061975,15.71,138.7,138.62,15.4119]
[1720815062150,15.71,138.7,138.64,15.71]
[1720815062480,7.2077,138.74,138.62,15.4119]
[1720815062481,15.71,138.72,138.62,15.4119]
[1720815062645,15.71,138.72,138.61,15.71]
[1720815062646,6.122,138.7,138.61,15.71]
[1720815062850,15.71,138.67,138.62,15.71]
[1720815063653,15.71,138.67,138.58,15.4119]
[1720815063654,15.71,138.68,138.63,15.71]
[1720815064157,15.71,138.69,138.63,15.71]
[1720815064356,15.71,138.69,138.58,15.4119]
[1720815064680,15.71,138.68,138.63,15.71]
[1720815065274,15.71,138.66,138.59,65.0]
[1720815065453,15.71,138.66,138.6,15.71]
[1720815065855,15.71,138.64,138.59,15.71]
[1720815067160,15.71,138.66,138.58,15.4119]
[1720815067365,15.71,138.66,138.61,15.71]
[1720815067563,15.3267,138.69,138.61,15.71]
[1720815067789,15.71,138.66,138.61,15.71]
[1720815070575,15.71,138.65,138.6,15.71]
[1720815072182,15.71,138.66,138.61,15.71]
[1720815072775,15.71,138.65,138.6,15.71]
[1720815074259,15.3267,138.69,138.58,15.4119]
[1720815074461,15.71,138.63,138.58,31.1219]
[1720815076699,20.0,138.68,138.58,15.4119]
[1720815076886,15.71,138.66,138.61,15.71]
[1720815077066,15.71,138.67,138.61,15.71]
[1720815079370,6.122,138.7,138.62,15.71]
[1720815079590,15.71,138.67,138.62,15.71]
[1720815079869,15.71,138.66,138.6,6.0564]
[1720815080274,15.71,138.65,138.59,45.0]
[1720815080476,15.71,138.64,138.59,15.71]
[1720815080675,15.71,138.65,138.59,15.71]
[1720815081071,15.71,138.65,138.6,15.71]
[1720815082202,15.71,138.65,138.59,15.71]
[1720815082683,15.71,138.64,138.59,15.71]
[1720815083877,15.71,138.65,138.59,15.71]
[1720815086070,15.71,138.65,138.6,15.71]
[1720815088005,15.71,138.65,138.58,15.4119]
[1720815088178,15.71,138.65,138.59,15.71]
[1720815089117,6.122,138.7,138.6,15.71]
[1720815089325,15.71,138.67,138.62,15.71]
[1720815090084,15.71,138.68,138.63,15.71]
[1720815090789,15.71,138.67,138.62,15.71]
[1720815094509,6.122,138.7,138.62,15.71]
[1720815094722,15.71,138.68,138.62,15.71]
[1720815096908,15.71,138.68,138.61,45.0]
[1720815096909,15.71,138.68,138.63,15.71]
[1720815097314,15.71,138.69,138.63,15.71]
[1720815099519,15.71,138.69,138.64,1.44234903]
[1720815099699,15.71,138.69,138.63,15.71]
[1720815100327,15.71,138.69,138.64,1.43898239]
[1720815101516,15.158,138.72,138.65,16.71576658]
[1720815101713,15.71,138.71,138.66,17.15210778]
[1720815101920,15.71,138.69,138.63,15.4304]
[1720815102219,15.71,138.69,138.64,15.71]
[1720815102727,15.71,138.69,138.63,15.4304]
[1720815102902,15.71,138.68,138.63,31.1404]
[1720815103295,15.71,138.68,138.61,45.0]
[1720815103624,15.71,138.68,138.62,35.71]
[1720815103808,15.71,138.68,138.63,45.0]
[1720815104010,15.71,138.68,138.63,60.71]
[1720815104796,15.71,138.68,138.63,15.71]
[1720815105008,15.71,138.68,138.64,1.4424069]
[1720815105516,15.71,138.68,138.63,15.71]
[1720815106027,15.71,138.68,138.63,17.15233866]
[1720815106195,22.3669,138.72,138.64,15.71]
[1720815106395,15.71,138.69,138.65,1.44232449]
[1720815107108,15.71,138.7,138.65,17.15232449]
[1720815107329,15.71,138.7,138.66,1.44217137]
[1720815108021,15.158,138.72,138.65,15.71]
[1720815108325,15.71,138.7,138.64,15.71]
[1720815109222,15.71,138.7,138.65,16.80999249]
[1720815109425,15.71,138.7,138.65,15.71]
[1720815109722,15.71,138.7,138.64,15.71]
[1720815110725,15.71,138.7,138.65,1.44218772]
[1720815110925,15.71,138.7,138.64,15.71]
[1720815111102,15.71,138.7,138.65,1.44218775]
[1720815111620,15.71,138.7,138.65,17.15218775]
[1720815112428,15.71,138.7,138.65,15.71]
[1720815112610,15.71,138.7,138.66,1.44218466]
[1720815113527,15.158,138.72,138.66,60.71]
[1720815113528,15.71,138.71,138.66,60.71]
[1720815116802,15.158,138.72,138.66,60.71]
[1720815117129,15.71,138.71,138.66,60.71]
[1720815117999,15.71,138.71,138.66,15.71]
[1720815118204,15.71,138.7,138.62,20.0]
[1720815118407,15.71,138.69,138.64,15.71]
[1720815121748,15.71,138.65,138.6,16.2937]
[1720815121915,15.71,138.64,138.6,16.2937]
[1720815122422,6.182,138.69,138.6,16.2937]
[1720815122625,15.71,138.65,138.6,32.0037]
[1720815122817,15.71,138.66,138.61,15.71]
[1720815127312,15.71,138.66,138.6,16.2937]
[1720815127623,15.71,138.66,138.6,32.0037]
[1720815127827,15.71,138.66,138.61,45.0]
[1720815131143,15.71,138.65,138.6,32.0037]
[1720815133343,15.71,138.64,138.6,16.2937]
[1720815134551,15.71,138.65,138.6,32.0037]
[1720815134761,6.182,138.69,138.6,32.0037]
[1720815135064,15.71,138.66,138.61,1.4425979]
[1720815136048,15.71,138.66,138.61,17.1525979]
[1720815136563,15.71,138.66,138.61,15.71]
[1720815138959,6.182,138.69,138.62,1.44259974]
[1720815139169,15.71,138.67,138.62,15.71]
[1720815139745,15.71,138.66,138.61,15.71]
[1720815139947,15.71,138.66,138.62,45.0]
[1720815141972,15.71,138.66,138.61,15.71]
[1720815145858,13.3924,138.69,138.61,15.71]
[1720815146052,15.71,138.66,138.61,15.71]
[1720815150076,7.2116,138.67,138.59,15.71]
[1720815150282,15.71,138.65,138.57,26.04547233]
[1720815150487,15.71,138.65,138.58,20.0]
[1720815150653,15.71,138.65,138.59,15.71]
[1720815150852,15.71,138.65,138.6,15.71]
[1720815152573,15.71,138.66,138.6,15.71]
[1720815153080,15.71,138.66,138.61,15.71]
[1720815153582,15.71,138.66,138.62,1.44260098]
[1720815154181,15.71,138.67,138.62,17.15260098]
[1720815154372,6.182,138.69,138.62,17.15260098]
[1720815154579,15.71,138.67,138.62,17.15260098]
[1720815155253,15.71,138.67,138.62,15.71]
[1720815155685,6.182,138.69,138.64,15.71]
[1720815155877,15.71,138.69,138.64,15.71]
[1720815156462,15.71,138.69,138.65,15.71]
[1720815156660,32.1912,138.7,138.65,15.71]
[1720815158179,15.71,138.69,138.64,15.71]
[1720815158683,16.4812,138.7,138.63,15.71]
[1720815158684,15.71,138.68,138.63,15.71]
[1720815162586,16.4812,138.7,138.63,15.71]
[1720815163796,16.4812,138.7,138.62,16.305]
[1720815163966,15.71,138.66,138.59,16.5527]
[1720815164291,15.71,138.63,138.58,15.71]
[1720815167092,15.71,138.63,138.59,16.5527]
[1720815167289,6.5806,138.68,138.62,15.71]
[1720815167471,22.2906,138.68,138.62,15.71]
[1720815167667,22.2906,138.68,138.63,15.71]
[1720815168672,6.5806,138.68,138.63,15.71]
[1720815168872,22.2906,138.68,138.63,15.71]
[1720815170297,16.4812,138.7,138.63,15.71]
[1720815170475,6.6608,138.71,138.64,45.0]
[1720815170793,6.6608,138.71,138.66,15.71]
[1720815171999,15.71,138.7,138.65,15.71]
[1720815175576,15.71,138.7,138.65,16.38323887]
[1720815175781,15.71,138.7,138.65,15.71]
[1720815176100,15.71,138.7,138.65,16.38337506]
[1720815176283,15.71,138.69,138.63,15.71]
[1720815177408,15.71,138.69,138.64,15.71]
[1720815178898,15.71,138.7,138.64,15.71]
[1720815179317,15.71,138.7,138.65,15.71]
[1720815181111,16.2667,138.69,138.61,15.189]
[1720815181294,16.2667,138.69,138.63,15.71]
[1720815181499,31.9767,138.69,138.63,15.71]
[1720815182120,15.71,138.68,138.58,15.1315]
[1720815182317,16.2667,138.69,138.6,15.71]
[1720815182318,15.71,138.65,138.6,15.71]
[1720815182995,15.71,138.65,138.58,15.1315]
[1720815183203,45.71,138.64,138.59,15.71]
[1720815184015,45.71,138.64,138.54,17.90414706]
[1720815184216,45.71,138.64,138.59,15.71]
[1720815185225,30.0,138.64,138.6,15.71]
[1720815185735,21.8476,138.66,138.6,15.71]
[1720815185915,15.71,138.65,138.6,15.71]
[1720815190205,6.1376,138.66,138.54,22.28]
[1720815190206,15.71,138.64,138.59,15.71]
[1720815190923,15.71,138.64,138.54,15.042]
[1720815191105,15.71,138.64,138.59,15.71]
[1720815191521,15.71,138.63,138.54,15.042]
[1720815191702,6.0001,138.6,138.53,7.55193383]
[1720815191902,15.71,138.58,138.48,16.1221]
[1720815192101,15.71,138.58,138.53,15.71]
[1720815192724,15.71,138.58,138.48,78.9621]
[1720815192925,15.71,138.57,138.52,15.71]
[1720815193131,15.71,138.58,138.52,15.71]
[1720815193840,15.71,138.57,138.52,15.71]
[1720815194210,15.1272,138.59,138.53,15.71]
[1720815194407,15.71,138.58,138.53,15.71]
[1720815194918,15.1272,138.59,138.53,15.71]
[1720815195122,15.71,138.58,138.53,15.71]
[1720815195334,30.8372,138.59,138.53,15.71]
[1720815196428,15.71,138.58,138.48,78.9621]
[1720815196725,15.1272,138.59,138.53,15.71]
[1720815196929,15.1272,138.59,138.54,15.71]
[1720815197240,6.0001,138.6,138.55,15.71]
[1720815198738,21.7101,138.6,138.55,15.71]
[1720815198933,6.0001,138.6,138.55,15.71]
[1720815200637,6.0001,138.6,138.49,45.0]
[1720815200934,6.0001,138.6,138.55,15.71]
[1720815202027,6.0001,138.6,138.5,20.0]
[1720815202225,6.0001,138.6,138.54,15.71]
[1720815203940,6.0001,138.6,138.5,20.0]
[1720815204150,6.0001,138.6,138.53,15.71]
[1720815204151,15.71,138.58,138.53,15.71]
[1720815204330,15.71,138.58,138.52,15.71]
[1720815204634,15.71,138.57,138.52,15.71]
[1720815206834,15.71,138.57,138.5,20.0]
[1720815207032,15.71,138.57,138.52,15.71]
[1720815207221,15.71,138.58,138.53,15.71]
[1720815210136,31.2529,138.58,138.51,45.0]
[1720815210341,15.71,138.57,138.52,35.71]
[1720815211222,15.71,138.57,138.52,15.71]
[1720815211856,15.71,138.56,138.5,45.0]
[1720815212144,15.71,138.56,138.51,15.71]
[1720815212468,15.71,138.55,138.5,15.71]
[1720815213530,6.596,138.55,138.45,32.50353894]
[1720815213862,6.596,138.55,138.43,6.5924]
[1720815213863,31.8029,138.52,138.43,6.5924]
[1720815214026,31.8029,138.52,138.47,15.71]
[1720815214223,16.0929,138.52,138.46,15.71]
[1720815214446,15.71,138.51,138.46,15.71]
[1720815215328,15.71,138.5,138.42,16.4206]
[1720815215528,15.71,138.5,138.45,15.71]
[1720815215724,15.71,138.51,138.45,15.71]
[1720815216045,15.71,138.51,138.43,20.0]
[1720815216046,15.71,138.51,138.46,15.71]
[1720815216244,31.8029,138.52,138.46,15.71]
[1720815216828,16.0929,138.52,138.46,15.71]
[1720815217029,16.0929,138.52,138.47,60.71]
[1720815218340,16.0929,138.52,138.47,45.0]
[1720815218548,16.0929,138.52,138.47,60.71]
[1720815218856,31.8029,138.52,138.47,60.71]
[1720815220554,31.8029,138.52,138.47,15.71]
[1720815220936,16.0929,138.52,138.47,15.71]
[1720815221254,16.0929,138.52,138.48,15.71]
[1720815221456,45.71,138.54,138.49,17.1526417]
[1720815221641,45.71,138.54,138.5,1.44310358]
[1720815222438,30.0,138.54,138.5,17.15310358]
[1720815222756,30.0,138.54,138.5,15.71]
[1720815223163,45.71,138.54,138.49,15.71]
[1720815223333,15.71,138.54,138.49,15.71]
[1720815224037,6.596,138.55,138.49,15.71]
[1720815224248,6.596,138.55,138.52,15.71]
[1720815224750,6.596,138.55,138.51,17.15341014]
[1720815225846,6.596,138.55,138.51,15.71]
[1720815229473,6.596,138.55,138.5,45.0]
[1720815229474,6.596,138.55,138.52,15.71]
[1720815230055,6.596,138.55,138.5,45.0]
[1720815230368,6.596,138.55,138.51,15.71]
[1720815232782,6.596,138.55,138.52,15.71]
[1720815236571,6.596,138.55,138.49,45.0]
[1720815236780,6.596,138.55,138.51,15.71]
[1720815237663,6.596,138.55,138.48,45.0]
[1720815237857,29.5237,138.55,138.48,45.0]
[1720815238171,29.5237,138.55,138.49,15.71]
[1720815238172,15.71,138.54,138.49,15.71]
[1720815238554,15.71,138.54,138.48,45.0]
[1720815238754,15.71,138.54,138.48,60.71]
[1720815239747,15.71,138.54,138.49,15.71]
[1720815240260,15.71,138.54,138.48,15.71]
[1720815240462,15.71,138.53,138.43,15.0912]
[1720815240658,15.71,138.53,138.48,15.71]
[1720815242354,15.71,138.52,138.43,15.0912]
[1720815242664,15.1258,138.51,138.44,65.0]
[1720815242873,15.1258,138.51,138.47,15.71]
[1720815244185,15.1258,138.51,138.48,15.71]
[1720815244679,15.1258,138.51,138.47,15.71]
[1720815245064,6.5194,138.5,138.44,65.0]
[1720815245269,22.2294,138.5,138.44,65.0]
[1720815245458,22.2294,138.5,138.45,15.71]
[1720815247787,22.2294,138.5,138.44,65.0]
[1720815247977,22.2294,138.5,138.45,15.71]
[1720815248480,6.1842,138.45,138.39,0.8684143]
[1720815248877,6.1842,138.45,138.39,16.5784143]
[1720815249077,6.1842,138.45,138.4,1.40633832]
[1720815249260,6.1842,138.45,138.42,15.71]
[1720815249655,6.1842,138.45,138.41,15.71]
[1720815249856,15.71,138.44,138.41,7.2248]
[1720815250091,6.1842,138.45,138.42,7.2242]